[Event "FIDE WYCC Girls U14 2023"]
[Site "Montesilvano"]
[Date "2023.11.24"]
[Round "11.24"]
[White "Aswinika Mani R"]
[Black "Li, Anna Sofie"]
[Result "1-0"]
[ECO "C50"]
[WhiteElo "1472"]
[BlackElo "1722"]
[Annotator "NA RC"]
[PlyCount "59"]
[EventDate "2023.11.13"]
[EventType "swiss"]
[EventCountry "ITA"]
[SourceTitle "playchess.com"]
[Source "ChessBase"]
[SourceQuality "1"]
[TimeControl "40/5400+30:1800+30"]

1. e4 {[%emt 0:00:10]} e5 {[%emt 0:00:07]} 2. Nf3 {[%emt 0:00:13]} Nc6 {[%emt 0:00:07]} 3. Bc4 {[%emt 0:00:06]} Nf6 {[%emt 0:00:09]} 4. d3 {[%emt 0:00:26]} Bc5 {[%emt 0:00:13]} 5. c3 {[%emt 0:00:04]} a6 {[%emt 0:00:09]} 6. a4 {[%emt 0:03:23]} d6 {[%emt 0:00:47]} 7. h3 {[%emt 0:01:19]} h6 {[%emt 0:01:56]} 8. b4 {[%emt 0:06:14]} Ba7 {[%emt 0:02:11]} 9. O-O {[%emt 0:05:41]} Ne7 {[%emt 0:07:56]} 10. Nbd2 {[%emt 0:05:50]} g5 {[%emt 0:02:23]} 11. d4 {[%emt 0:06:26]} Ng6 {[%emt 0:09:50]} 12. Re1 {[%emt 0:11:56]} g4 {[%emt 0:20:58]} 13. hxg4 {[%emt 0:02:07]} Bxg4 {[%emt 0:02:13]} 14. Nf1 {[%emt 0:00:32]} Bxf3 {[%emt 0:06:30]} 15. Qxf3 {[%emt 0:01:23]} exd4 {[%emt 0:02:54]} 16. Bf4 {[%emt 0:05:12]} Ne5 {[%emt 0:03:11]} 17. Bxe5 {[%emt 0:00:28]} dxe5 {[%emt 0:00:16]} 18. cxd4 {[%emt 0:00:51]} Bxd4 {[%emt 0:04:21]} 19. Rad1 {[%emt 0:00:34]} Qe7 {[%emt 0:01:13]} 20. Rxd4 {[%emt 0:05:25]} exd4 {[%emt 0:00:38]} 21. e5 {[%emt 0:00:05]} Nh7 {[%emt 0:02:49]} 22. Qxb7 {[%emt 0:04:48]} O-O {[%emt 0:02:56]} 23. Ng3 {[%emt 0:03:15]} Rfb8 {[%emt 0:04:39]} 24. Qe4 {[%emt 0:01:23]} Ng5 {[%emt 0:05:47]} 25. Qg6+ {[%emt 0:01:20]} Kh8 {[%emt 0:02:32]} 26. Qxh6+ {[%emt 0:00:20]} Nh7 {[%emt 0:00:13]} 27. Bd3 {[%emt 0:01:30]} f6 {[%emt 0:02:21]} 28. exf6 {[%emt 0:00:23]} Qxe1+ {[%emt 0:02:05]} 29. Kh2 {[%emt 0:00:09]} Kg8 {[%emt 0:00:34]} 30. Qg7# {[%emt 0:00:05]} 1-0

[Event "FIDE WYCC Girls U14 2023"]
[Site "Montesilvano"]
[Date "2023.11.24"]
[Round "11.25"]
[White "Rice, Leah"]
[Black "Briem, Gudrun Fanney"]
[Result "1/2-1/2"]
[ECO "D04"]
[WhiteElo "1499"]
[BlackElo "1692"]
[Annotator "NA RC"]
[PlyCount "77"]
[EventDate "2023.11.13"]
[EventType "swiss"]
[EventCountry "ITA"]
[SourceTitle "playchess.com"]
[Source "ChessBase"]
[SourceQuality "1"]
[TimeControl "40/5400+30:1800+30"]

1. d4 {[%emt 0:00:03]} d5 {[%emt 0:00:09]} 2. Nf3 {[%emt 0:00:34]} Nf6 {[%emt 0:00:12]} 3. e3 {[%emt 0:00:34]} c5 {[%emt 0:00:35]} 4. b3 {[%emt 0:01:00]} Bg4 {[%emt 0:00:28]} 5. Be2 {[%emt 0:01:15]} e6 {[%emt 0:00:42]} 6. Bb2 {[%emt 0:01:03]} Nc6 {[%emt 0:02:30]} 7. h3 {[%emt 0:03:14]} Bh5 {[%emt 0:00:51]} 8. O-O {[%emt 0:03:32]} cxd4 {[%emt 0:04:50]} 9. Nxd4 {[%emt 0:10:40]} Bxe2 {[%emt 0:00:45]} 10. Qxe2 {[%emt 0:00:41]} Be7 {[%emt 0:01:09]} 11. c4 {[%emt 0:02:41]} O-O {[%emt 0:03:18]} 12. Nxc6 {[%emt 0:02:14]} bxc6 {[%emt 0:00:08]} 13. Nc3 {[%emt 0:00:51]} Qb6 {[%emt 0:07:58]} 14. e4 {[%emt 0:02:36]} Qa6 {[%emt 0:07:39]} 15. exd5 {[%emt 0:14:20]} cxd5 {[%emt 0:00:35]} 16. Nb5 {[%emt 0:00:48]} Rac8 {[%emt 0:04:17]} 17. cxd5 {[%emt 0:02:05]} Nxd5 {[%emt 0:00:42]} 18. Rfd1 {[%emt 0:01:51]} Rc5 {[%emt 0:05:38]} 19. a4 {[%emt 0:02:31]} Rfc8 {[%emt 0:04:20]} 20. Qg4 {[%emt 0:04:29]} Nf6 {[%emt 0:02:49]} 21. Qf3 {[%emt 0:02:02]} Rf5 {[%emt 0:10:28]} 22. Qe3 {[%emt 0:04:47]} Rc2 {[%emt 0:07:43]} 23. Nd4 {[%emt 0:01:42]} Nd5 {[%emt 0:06:36]} 24. Qd3 {[%emt 0:05:03]} Rfxf2 {[%emt 0:09:46]} 25. Nxc2 {[%emt 0:00:44]} Qxd3 {[%emt 0:00:25]} 26. Rxd3 {[%emt 0:00:04]} Rxc2 {[%emt 0:00:07]} 27. Be5 {[%emt 0:03:03]} f6 {[%emt 0:05:50]} 28. Bb8 {[%emt 0:00:13]} Bc5+ {[%emt 0:01:40]} 29. Kh1 {[%emt 0:01:09]} a5 {[%emt 0:03:19]} 30. Re1 {[%emt 0:00:53]} Kf7 {[%emt 0:01:05]} 31. Rdd1 {[%emt 0:01:26]} Ba3 {[%emt 0:03:13]} 32. Re4 {[%emt 0:07:39]} Bb4 {[%emt 0:00:33]} 33. Rc4 {[%emt 0:00:39]} Rb2 {[%emt 0:03:44]} 34. Rd3 {[%emt 0:00:44]} g5 {[%emt 0:01:11]} 35. h4 {[%emt 0:02:04]} h6 {[%emt 0:01:22]} 36. hxg5 {[%emt 0:00:37]} hxg5 37. Rc8 {[%emt 0:00:24]} Be1 {[%emt 0:01:48]} 38. Rc1 {[%emt 0:00:25]} Bb4 {[%emt 0:00:16]} 39. Rc8 {[%emt 0:00:47]} 1/2-1/2

[Event "FIDE WYCC Girls U14 2023"]
[Site "Montesilvano"]
[Date "2023.11.24"]
[Round "11.26"]
[White "Arzur, Maia"]
[Black "Field, Lila Quinn"]
[Result "1/2-1/2"]
[ECO "C50"]
[WhiteElo "1997"]
[BlackElo "1616"]
[Annotator "NA RC"]
[PlyCount "89"]
[EventDate "2023.11.13"]
[EventType "swiss"]
[EventCountry "ITA"]
[SourceTitle "playchess.com"]
[Source "ChessBase"]
[SourceQuality "1"]
[TimeControl "40/5400+30:1800+30"]

1. e4 {[%emt 0:00:08]} e5 {[%emt 0:00:15]} 2. Nf3 {[%emt 0:00:11]} Nc6 {[%emt 0:00:07]} 3. Bc4 {[%emt 0:00:09]} Bc5 {[%emt 0:00:15]} 4. O-O {[%emt 0:00:18]} Nf6 {[%emt 0:00:11]} 5. d3 {[%emt 0:00:17]} O-O {[%emt 0:00:12]} 6. h3 {[%emt 0:00:55]} d6 {[%emt 0:02:07]} 7. c3 {[%emt 0:01:23]} a6 {[%emt 0:03:26]} 8. a4 {[%emt 0:01:14]} h6 {[%emt 0:02:42]} 9. Nbd2 {[%emt 0:02:27]} Be6 {[%emt 0:02:27]} 10. Re1 {[%emt 0:03:18]} Qd7 {[%emt 0:08:00]} 11. Nf1 {[%emt 0:05:07]} Ba7 {[%emt 0:01:44]} 12. Bxe6 {[%emt 0:04:01]} fxe6 {[%emt 0:03:40]} 13. N1h2 {[%emt 0:07:19]} Nh5 {[%emt 0:08:23]} 14. d4 {[%emt 0:05:37]} exd4 {[%emt 0:02:25]} 15. cxd4 {[%emt 0:00:12]} Qf7 {[%emt 0:03:14]} 16. Be3 {[%emt 0:05:10]} a5 {[%emt 0:09:41]} 17. Qb3 {[%emt 0:06:14]} Nb4 {[%emt 0:03:08]} 18. Rac1 {[%emt 0:06:55]} e5 {[%emt 0:07:31]} 19. Qxf7+ {[%emt 0:12:17]} Rxf7 {[%emt 0:00:11]} 20. Red1 {[%emt 0:01:15]} exd4 {[%emt 0:02:03]} 21. Bxd4 {[%emt 0:00:58]} Nf4 {[%emt 0:03:43]} 22. Rd2 {[%emt 0:03:54]} Bxd4 {[%emt 0:04:35]} 23. Nxd4 {[%emt 0:00:02]} Nfd3 {[%emt 0:00:51]} 24. Rc3 {[%emt 0:04:58]} Nc5 {[%emt 0:04:43]} 25. f3 {[%emt 0:00:06]} Nxa4 {[%emt 0:01:54]} 26. Rc1 {[%emt 0:00:05]} Nc5 {[%emt 0:06:08]} 27. Ng4 {[%emt 0:01:45]} Nc6 {[%emt 0:04:15]} 28. Rc3 {[%emt 0:02:27]} Nxd4 {[%emt 0:02:12]} 29. Rxd4 {[%emt 0:00:02]} a4 {[%emt 0:01:19]} 30. e5 {[%emt 0:01:41]} Ne6 {[%emt 0:05:51]} 31. Rb4 {[%emt 0:01:41]} Nf4 {[%emt 0:01:50]} 32. Rc2 {[%emt 0:01:34]} h5 {[%emt 0:01:09]} 33. Nf2 {[%emt 0:01:43]} c5 {[%emt 0:02:57]} 34. Rb6 {[%emt 0:00:58]} dxe5 {[%emt 0:01:02]} 35. Rxc5 {[%emt 0:00:48]} Rd7 {[%emt 0:02:14]} 36. Rxe5 {[%emt 0:02:13]} Rd2 {[%emt 0:00:37]} 37. Re4 {[%emt 0:07:16]} Ne2+ {[%emt 0:00:52]} 38. Kh2 {[%emt 0:00:10]} Nc3 {[%emt 0:00:31]} 39. Rc4 {[%emt 0:07:40]} Nd5 {[%emt 0:00:16]} 40. Rd6 {[%emt 0:00:00]} Rxf2 {[%emt 0:00:00]} 41. Rxd5 {[%emt 0:00:36]} Rxb2 {[%emt 0:00:18]} 42. Rc7 {[%emt 0:00:20]} a3 {[%emt 0:11:12]} 43. Rdd7 {[%emt 0:00:51]} a2 {[%emt 0:06:30]} 44. Rxg7+ {[%emt 0:00:07]} Kh8 {[%emt 0:00:38]} 45. Rh7+ {[%emt 0:01:05]} 1/2-1/2

[Event "FIDE WYCC Girls U14 2023"]
[Site "Montesilvano"]
[Date "2023.11.24"]
[Round "11.27"]
[White "Sezdbekova, Aizhan"]
[Black "Stoll, Lucia"]
[Result "0-1"]
[ECO "C45"]
[WhiteElo "1594"]
[BlackElo "1887"]
[Annotator "NA RC"]
[PlyCount "68"]
[EventDate "2023.11.13"]
[EventType "swiss"]
[EventCountry "ITA"]
[SourceTitle "playchess.com"]
[Source "ChessBase"]
[SourceQuality "1"]
[TimeControl "40/5400+30:1800+30"]

1. e4 {[%emt 0:00:39]} e5 {[%emt 0:00:04]} 2. Nf3 {[%emt 0:00:05]} Nc6 {[%emt 0:00:03]} 3. d4 {[%emt 0:00:04]} exd4 {[%emt 0:00:05]} 4. Nxd4 {[%emt 0:00:03]} Nf6 {[%emt 0:00:27]} 5. Nxc6 {[%emt 0:00:14]} bxc6 {[%emt 0:00:05]} 6. Nd2 {[%emt 0:00:03]} d5 {[%emt 0:06:35]} 7. exd5 {[%emt 0:00:58]} cxd5 {[%emt 0:00:06]} 8. Bb5+ {[%emt 0:00:06]} Bd7 {[%emt 0:00:24]} 9. Bxd7+ {[%emt 0:00:08]} Qxd7 {[%emt 0:00:19]} 10. O-O {[%emt 0:00:07]} Be7 {[%emt 0:00:18]} 11. Re1 {[%emt 0:14:50]} O-O {[%emt 0:00:33]} 12. Nf3 {[%emt 0:02:09]} c5 {[%emt 0:06:54]} 13. Bg5 {[%emt 0:05:23]} Rab8 {[%emt 0:03:48]} 14. b3 {[%emt 0:01:52]} h6 {[%emt 0:05:47]} 15. Bh4 {[%emt 0:01:49]} Rfe8 {[%emt 0:08:31]} 16. Qd3 {[%emt 0:24:21]} Rb6 {[%emt 0:10:00]} 17. Re5 {[%emt 0:07:22]} Rd8 {[%emt 0:03:58]} 18. Rd1 {[%emt 0:05:11]} Qb7 {[%emt 0:04:27]} 19. h3 {[%emt 0:16:10]} Rbd6 {[%emt 0:06:02]} 20. Nh2 {[%emt 0:06:30]} g5 {[%emt 0:19:56]} 21. Bg3 {[%emt 0:02:44]} Ne4 {[%emt 0:01:34]} 22. Rxe7 {[%emt 0:03:25]} Qxe7 {[%emt 0:00:48]} 23. Bxd6 {[%emt 0:00:07]} Rxd6 {[%emt 0:02:07]} 24. Ng4 {[%emt 0:00:32]} h5 {[%emt 0:05:16]} 25. Ne3 {[%emt 0:00:29]} Qf6 {[%emt 0:00:07]} 26. Nxd5 {[%emt 0:02:27]} Qxf2+ {[%emt 0:01:15]} 27. Kh2 {[%emt 0:00:14]} Rxd5 {[%emt 0:08:32]} 28. Qxd5 {[%emt 0:00:15]} Qf4+ {[%emt 0:00:33]} 29. Kg1 {[%emt 0:01:31]} Qe3+ {[%emt 0:00:40]} 30. Kh2 {[%emt 0:01:31]} g4 {[%emt 0:00:46]} 31. hxg4 {[%emt 0:01:23]} hxg4 {[%emt 0:01:24]} 32. Kh1 {[%emt 0:02:28]} Nf2+ {[%emt 0:00:24]} 33. Kh2 {[%emt 0:00:41]} g3+ {[%emt 0:00:05]} 34. Kg1 {[%emt 0:00:03]} Nxd1+ {[%emt 0:00:10]} 0-1

[Event "FIDE WYCC Girls U14 2023"]
[Site "Montesilvano"]
[Date "2023.11.24"]
[Round "11.28"]
[White "Kazhiakhmetova, Yerkenaz"]
[Black "Lorenz, Veronika"]
[Result "0-1"]
[ECO "D71"]
[WhiteElo "1218"]
[BlackElo "1791"]
[Annotator "NA RC"]
[PlyCount "74"]
[EventDate "2023.11.13"]
[EventType "swiss"]
[EventCountry "ITA"]
[SourceTitle "playchess.com"]
[Source "ChessBase"]
[SourceQuality "1"]
[TimeControl "40/5400+30:1800+30"]

1. d4 {[%emt 0:00:07]} Nf6 {[%emt 0:00:04]} 2. c4 {[%emt 0:00:07]} g6 {[%emt 0:00:01]} 3. g3 {[%emt 0:00:06]} Bg7 {[%emt 0:00:01]} 4. Bg2 {[%emt 0:00:26]} d6 {[%emt 0:00:02]} 5. Nc3 {[%emt 0:00:09]} O-O {[%emt 0:00:02]} 6. e4 {[%emt 0:00:06]} Nbd7 {[%emt 0:00:07]} 7. Nge2 {[%emt 0:02:01]} e5 {[%emt 0:00:18]} 8. d5 {[%emt 0:00:15]} a5 {[%emt 0:00:44]} 9. h3 {[%emt 0:01:44]} Nc5 {[%emt 0:00:49]} 10. Be3 {[%emt 0:00:27]} Ne8 {[%emt 0:04:58]} 11. a3 {[%emt 0:02:11]} f5 {[%emt 0:00:15]} 12. b4 {[%emt 0:02:24]} axb4 {[%emt 0:01:12]} 13. axb4 {[%emt 0:00:18]} Rxa1 {[%emt 0:00:38]} 14. Qxa1 {[%emt 0:00:57]} Nd3+ {[%emt 0:00:28]} 15. Kd2 {[%emt 0:05:11]} Nxb4 {[%emt 0:00:25]} 16. Qa8 {[%emt 0:02:03]} Na6 {[%emt 0:10:39]} 17. Rb1 {[%emt 0:01:38]} Nf6 {[%emt 0:01:11]} 18. f3 {[%emt 0:01:21]} Qe7 {[%emt 0:06:28]} 19. Nb5 {[%emt 0:02:29]} fxe4 {[%emt 0:00:49]} 20. f4 {[%emt 0:10:07]} Bxh3 {[%emt 0:12:16]} 21. Qxb7 {[%emt 0:01:09]} Bxg2 {[%emt 0:00:04]} 22. Qxa6 {[%emt 0:00:09]} Ng4 {[%emt 0:03:18]} 23. Qa7 {[%emt 0:04:42]} Nxe3 {[%emt 0:06:20]} 24. Qxe3 {[%emt 0:00:26]} g5 {[%emt 0:05:29]} 25. Rg1 {[%emt 0:05:09]} Bf3 {[%emt 0:02:29]} 26. Nbc3 {[%emt 0:01:27]} exf4 {[%emt 0:03:37]} 27. gxf4 {[%emt 0:00:15]} g4 {[%emt 0:00:29]} 28. Nb5 {[%emt 0:06:23]} Ra8 {[%emt 0:06:52]} 29. Ned4 {[%emt 0:02:48]} Ra2+ {[%emt 0:03:59]} 30. Kc1 {[%emt 0:00:54]} Qf6 {[%emt 0:03:54]} 31. Kb1 {[%emt 0:01:40]} Ra8 {[%emt 0:05:35]} 32. Kc2 {[%emt 0:00:43]} Qh4 {[%emt 0:09:56]} 33. Nxf3 {[%emt 0:05:27]} exf3 {[%emt 0:01:50]} 34. Qe6+ {[%emt 0:00:17]} Kh8 {[%emt 0:00:04]} 35. Rxg4 {[%emt 0:00:19]} Qf2+ {[%emt 0:00:26]} 36. Kd3 {[%emt 0:00:35]} Qf1+ {[%emt 0:00:44]} 37. Ke3 {[%emt 0:00:18]} Qe2# {[%emt 0:00:09]} 0-1

[Event "FIDE WYCC Girls U14 2023"]
[Site "Montesilvano"]
[Date "2023.11.24"]
[Round "11.29"]
[White "Stankovic, Andrea"]
[Black "Pereira Garza, Cecilia"]
[Result "1-0"]
[ECO "D44"]
[WhiteElo "1768"]
[BlackElo "1479"]
[Annotator "NA"]
[PlyCount "119"]
[EventDate "2023.11.13"]
[EventType "swiss"]
[EventCountry "ITA"]
[SourceTitle "playchess.com"]
[Source "ChessBase"]
[SourceQuality "1"]
[TimeControl "40/5400+30:1800+30"]

1. d4 {[%emt 0:00:02]} d5 {[%emt 0:00:05]} 2. Nf3 {[%emt 0:00:05]} Nf6 {[%emt 0:00:17]} 3. c4 {[%emt 0:00:10]} c6 {[%emt 0:00:10]} 4. Nc3 {[%emt 0:00:17]} e6 {[%emt 0:00:10]} 5. Bg5 {[%emt 0:00:13]} dxc4 {[%emt 0:00:48]} 6. e4 {[%emt 0:01:41]} b5 {[%emt 0:00:11]} 7. e5 {[%emt 0:00:20]} h6 {[%emt 0:00:06]} 8. Bh4 {[%emt 0:00:49]} g5 {[%emt 0:00:14]} 9. Nxg5 {[%emt 0:00:19]} hxg5 {[%emt 0:00:09]} 10. Bxg5 {[%emt 0:00:07]} Be7 {[%emt 0:00:53]} 11. exf6 {[%emt 0:01:06]} Bxf6 {[%emt 0:00:35]} 12. Be3 {[%emt 0:02:12]} Bb7 {[%emt 0:05:02]} 13. Ne4 {[%emt 0:00:40]} Na6 {[%emt 0:00:36]} 14. Be2 {[%emt 0:13:54]} c5 {[%emt 0:09:15]} 15. Bf3 {[%emt 0:00:26]} Bxe4 {[%emt 0:01:54]} 16. Bxe4 {[%emt 0:00:11]} Rc8 {[%emt 0:00:20]} 17. Bb7 {[%emt 0:02:34]} Nb4 {[%emt 0:00:21]} 18. Bxc8 {[%emt 0:01:44]} Nd3+ {[%emt 0:00:08]} 19. Kf1 {[%emt 0:01:19]} cxd4 {[%emt 0:01:30]} 20. Ba6 {[%emt 0:05:14]} Qb6 {[%emt 0:00:54]} 21. Qf3 {[%emt 0:01:11]} e5 {[%emt 0:01:38]} 22. Bxb5+ {[%emt 0:01:13]} Qxb5 {[%emt 0:01:40]} 23. Qxf6 {[%emt 0:00:23]} Rh5 {[%emt 0:04:47]} 24. Bxd4 {[%emt 0:03:10]} c3 {[%emt 0:03:04]} 25. a4 {[%emt 0:03:08]} Qc4 {[%emt 0:05:31]} 26. Kg1 {[%emt 0:16:53]} Nf4 {[%emt 0:03:59]} 27. Re1 {[%emt 0:20:05]} c2 {[%emt 0:04:49]} 28. Qxf4 {[%emt 0:00:38]} Kf8 {[%emt 0:00:26]} 29. Bc5+ {[%emt 0:03:09]} Qxc5 {[%emt 0:00:40]} 30. Qd2 {[%emt 0:00:24]} e4 {[%emt 0:02:43]} 31. Qc3 {[%emt 0:00:43]} Qxc3 {[%emt 0:00:56]} 32. bxc3 {[%emt 0:00:36]} Rd5 {[%emt 0:00:10]} 33. g3 {[%emt 0:01:35]} Rd1 {[%emt 0:00:08]} 34. Kg2 {[%emt 0:00:07]} c1=Q {[%emt 0:00:20]} 35. Rxd1 {[%emt 0:00:12]} Qxc3 {[%emt 0:00:24]} 36. Rhe1 {[%emt 0:00:11]} Qc6 {[%emt 0:02:59]} 37. Re3 {[%emt 0:02:41]} Qxa4 {[%emt 0:00:55]} 38. Rde1 {[%emt 0:00:12]} Qc6 {[%emt 0:03:22]} 39. g4 {[%emt 0:00:28]} a5 {[%emt 0:01:39]} 40. Rxe4 {[%emt 0:00:00]} a4 {[%emt 0:00:00]} 41. f3 {[%emt 0:01:38]} a3 {[%emt 0:00:39]} 42. R4e2 {[%emt 0:00:41]} Qc4 {[%emt 0:00:48]} 43. Rd2 {[%emt 0:02:48]} Kg7 {[%emt 0:02:39]} 44. Ra1 {[%emt 0:01:15]} Qa6 {[%emt 0:02:02]} 45. Rda2 {[%emt 0:00:19]} Kg6 {[%emt 0:03:13]} 46. Rxa3 {[%emt 0:00:38]} Qe2+ {[%emt 0:00:20]} 47. Kg3 {[%emt 0:00:17]} Qe5+ {[%emt 0:02:02]} 48. f4 {[%emt 0:00:12]} Qb2 {[%emt 0:00:12]} 49. h4 {[%emt 0:00:37]} f6 {[%emt 0:01:21]} 50. g5 {[%emt 0:01:58]} f5 {[%emt 0:06:07]} 51. Ra6+ {[%emt 0:00:13]} Kf7 {[%emt 0:00:30]} 52. Ra7+ {[%emt 0:01:38]} Ke8 {[%emt 0:01:42]} 53. Ra8+ {[%emt 0:00:22]} Ke7 {[%emt 0:00:12]} 54. Re1+ {[%emt 0:01:32]} Kd7 {[%emt 0:02:18]} 55. Rae8 {[%emt 0:00:51]} Qb3+ {[%emt 0:02:56]} 56. R8e3 {[%emt 0:00:20]} Qg8 {[%emt 0:10:25]} 57. Rd1+ {[%emt 0:02:58]} Kc6 {[%emt 0:00:40]} 58. Rc3+ {[%emt 0:00:08]} Kb5 {[%emt 0:00:37]} 59. Rb1+ {[%emt 0:00:15]} Ka4 {[%emt 0:01:36]} 60. Rc7 {[%emt 0:00:24]} 1-0

[Event "FIDE WYCC Girls U14 2023"]
[Site "Montesilvano"]
[Date "2023.11.24"]
[Round "11.30"]
[White "Alemanova, Yasmina"]
[Black "Zadrapova, Amalie"]
[Result "0-1"]
[ECO "A45"]
[WhiteElo "1570"]
[BlackElo "1753"]
[Annotator "NA RC"]
[PlyCount "92"]
[EventDate "2023.11.13"]
[EventType "swiss"]
[EventCountry "ITA"]
[SourceTitle "playchess.com"]
[Source "ChessBase"]
[SourceQuality "1"]
[TimeControl "40/5400+30:1800+30"]

1. d4 Nf6 {[%emt 0:00:05]} 2. Nc3 {[%emt 0:00:06]} d5 {[%emt 0:00:20]} 3. Bf4 e6 {[%emt 0:01:00]} 4. a3 {[%emt 0:01:41]} Bd7 {[%emt 0:03:02]} 5. e3 {[%emt 0:00:26]} a6 {[%emt 0:00:44]} 6. Nf3 {[%emt 0:00:47]} c5 {[%emt 0:00:56]} 7. Ne5 {[%emt 0:04:11]} Nc6 {[%emt 0:01:43]} 8. Be2 {[%emt 0:00:27]} Be7 {[%emt 0:00:55]} 9. h4 {[%emt 0:01:35]} cxd4 {[%emt 0:06:22]} 10. exd4 {[%emt 0:00:07]} Qb6 {[%emt 0:03:47]} 11. Nxc6 {[%emt 0:00:56]} Bxc6 {[%emt 0:00:50]} 12. Rb1 {[%emt 0:02:35]} Rc8 {[%emt 0:02:50]} 13. f3 {[%emt 0:03:26]} Nh5 {[%emt 0:01:18]} 14. Be5 {[%emt 0:08:24]} Qd8 {[%emt 0:01:21]} 15. Kf2 {[%emt 0:03:15]} f6 {[%emt 0:05:51]} 16. Bh2 {[%emt 0:05:15]} f5 {[%emt 0:01:19]} 17. f4 {[%emt 0:01:08]} Nf6 {[%emt 0:00:19]} 18. g3 {[%emt 0:08:51]} h5 {[%emt 0:01:23]} 19. Re1 {[%emt 0:02:30]} g6 {[%emt 0:01:51]} 20. Kg2 {[%emt 0:02:15]} Ne4 {[%emt 0:01:01]} 21. Nxe4 {[%emt 0:00:59]} dxe4 {[%emt 0:00:25]} 22. Bg1 {[%emt 0:00:29]} Bd5 {[%emt 0:04:45]} 23. Be3 {[%emt 0:01:02]} Kf7 {[%emt 0:01:21]} 24. b3 {[%emt 0:04:26]} b5 {[%emt 0:01:40]} 25. a4 {[%emt 0:01:32]} Bb4 {[%emt 0:02:02]} 26. Rf1 {[%emt 0:04:37]} Qa5 {[%emt 0:17:10]} 27. axb5 {[%emt 0:09:24]} axb5 {[%emt 0:00:32]} 28. Ra1 {[%emt 0:08:57]} Qb6 {[%emt 0:01:39]} 29. Rf2 {[%emt 0:01:33]} Rc3 {[%emt 0:03:22]} 30. Qc1 Rxe3 {[%emt 0:02:03]} 31. c4 {[%emt 0:08:06]} Rc3 {[%emt 0:02:07]} 32. Qb2 {[%emt 0:00:44]} e3+ {[%emt 0:05:11]} 33. cxd5 {[%emt 0:00:15]} exf2 {[%emt 0:00:14]} 34. dxe6+ {[%emt 0:00:06]} Qxe6 {[%emt 0:02:28]} 35. Ra7+ {[%emt 0:00:48]} Kf6 {[%emt 0:01:42]} 36. Qa2 {[%emt 0:08:48]} Qe4+ {[%emt 0:02:32]} 37. Kh2 {[%emt 0:00:16]} f1=N+ {[%emt 0:00:15]} 38. Bxf1 {[%emt 0:00:49]} Rc2+ {[%emt 0:00:11]} 39. Qxc2 {[%emt 0:00:10]} Qxc2+ {[%emt 0:00:04]} 40. Kh3 {[%emt 0:00:00]} Qe4 {[%emt 0:00:00]} 41. Bg2 {[%emt 0:00:50]} Qxd4 {[%emt 0:01:13]} 42. Rb7 {[%emt 0:00:12]} Be1 {[%emt 0:01:11]} 43. Rxb5 {[%emt 0:01:30]} Qe3 {[%emt 0:00:15]} 44. Kh2 {[%emt 0:00:20]} Bxg3+ {[%emt 0:00:05]} 45. Kh1 {[%emt 0:00:13]} Qe1+ {[%emt 0:00:06]} 46. Bf1 {[%emt 0:00:02]} Qxf1# {[%emt 0:00:10]} 0-1

[Event "FIDE WYCC Girls U14 2023"]
[Site "Montesilvano"]
[Date "2023.11.24"]
[Round "11.31"]
[White "Chasouraki, Chrysi"]
[Black "Andries, Alexia"]
[Result "1-0"]
[ECO "B31"]
[WhiteElo "1559"]
[BlackElo "1750"]
[Annotator "NA"]
[PlyCount "101"]
[EventDate "2023.11.13"]
[EventType "swiss"]
[EventCountry "ITA"]
[SourceTitle "playchess.com"]
[Source "ChessBase"]
[SourceQuality "1"]
[TimeControl "40/5400+30:1800+30"]

1. e4 {[%emt 0:01:09]} c5 {[%emt 0:00:05]} 2. Nf3 {[%emt 0:00:28]} Nc6 {[%emt 0:00:06]} 3. Bb5 {[%emt 0:00:06]} g6 {[%emt 0:00:11]} 4. Bxc6 {[%emt 0:00:32]} bxc6 {[%emt 0:00:05]} 5. d4 {[%emt 0:00:13]} Bg7 {[%emt 0:00:15]} 6. dxc5 {[%emt 0:00:08]} Qa5+ {[%emt 0:00:10]} 7. Nbd2 {[%emt 0:00:05]} Qxc5 {[%emt 0:00:06]} 8. O-O {[%emt 0:00:07]} Nf6 {[%emt 0:00:30]} 9. Nb3 {[%emt 0:02:07]} Qb6 {[%emt 0:00:38]} 10. Re1 {[%emt 0:02:02]} O-O {[%emt 0:01:22]} 11. h3 {[%emt 0:01:19]} d6 {[%emt 0:02:36]} 12. c3 {[%emt 0:10:04]} Ba6 {[%emt 0:14:03]} 13. Bf4 {[%emt 0:02:15]} e5 {[%emt 0:04:10]} 14. Bg5 {[%emt 0:09:11]} Qc7 {[%emt 0:01:35]} 15. Qc2 {[%emt 0:01:34]} Bc4 {[%emt 0:00:56]} 16. Nbd2 {[%emt 0:02:34]} Be6 {[%emt 0:00:08]} 17. c4 {[%emt 0:00:23]} a5 {[%emt 0:00:16]} 18. b3 {[%emt 0:02:06]} Nd7 {[%emt 0:00:19]} 19. Be3 {[%emt 0:05:24]} h6 {[%emt 0:07:30]} 20. Nh2 {[%emt 0:05:49]} f5 {[%emt 0:01:31]} 21. f3 {[%emt 0:00:08]} f4 {[%emt 0:02:15]} 22. Bf2 {[%emt 0:00:09]} g5 {[%emt 0:00:26]} 23. Rac1 {[%emt 0:12:59]} c5 24. Nb1 {[%emt 0:02:08]} h5 {[%emt 0:05:13]} 25. Nc3 {[%emt 0:02:58]} Nf6 {[%emt 0:00:08]} 26. Red1 {[%emt 0:01:26]} Rfd8 {[%emt 0:02:47]} 27. Qe2 {[%emt 0:01:42]} Qc8 {[%emt 0:00:31]} 28. Rd3 {[%emt 0:06:58]} g4 {[%emt 0:01:24]} 29. hxg4 {[%emt 0:11:06]} hxg4 {[%emt 0:00:09]} 30. fxg4 {[%emt 0:00:55]} Nxg4 {[%emt 0:00:08]} 31. Nxg4 {[%emt 0:01:38]} Bxg4 {[%emt 0:00:05]} 32. Qd2 {[%emt 0:00:05]} Ra6 {[%emt 0:02:01]} 33. Nd5 {[%emt 0:03:23]} Qb7 {[%emt 0:04:02]} 34. Bh4 {[%emt 0:05:44]} Rd7 {[%emt 0:00:13]} 35. Qf2 {[%emt 0:02:27]} Be6 {[%emt 0:07:40]} 36. Nc3 {[%emt 0:01:20]} a4 {[%emt 0:01:21]} 37. Qe2 {[%emt 0:03:45]} axb3 {[%emt 0:01:39]} 38. axb3 {[%emt 0:00:05]} Qxb3 {[%emt 0:03:12]} 39. Nd5 {[%emt 0:02:47]} Qb7 {[%emt 0:01:07]} 40. Qh5 {[%emt 0:00:00]} Bf7 {[%emt 0:00:00]} 41. Qg4 {[%emt 0:01:28]} Bxd5 {[%emt 0:03:05]} 42. Rxd5 {[%emt 0:00:31]} Rf7 {[%emt 0:03:55]} 43. Rcd1 {[%emt 0:02:55]} Qb8 {[%emt 0:09:05]} 44. Qe6 {[%emt 0:03:01]} Bf8 {[%emt 0:09:18]} 45. Bf6 {[%emt 0:06:39]} Ra3 {[%emt 0:01:39]} 46. Rxd6 {[%emt 0:04:10]} Bxd6 {[%emt 0:00:40]} 47. Rxd6 {[%emt 0:00:11]} Ra1+ {[%emt 0:00:54]} 48. Kh2 {[%emt 0:00:04]} Qxd6 {[%emt 0:00:06]} 49. Qg4+ {[%emt 0:00:51]} Kh7 {[%emt 0:00:17]} 50. Qh5+ {[%emt 0:00:17]} Kg8 {[%emt 0:00:17]} 51. Qh8# {[%emt 0:00:01]} 1-0